Cogmind - Beta 15 @@@ ROGUE MODE // 2025.05.27 @ 18:09:38 Player: obl-vn Result: Self-destructed Performance ------------- Evolutions (3) 1500 Regions Visited (5) 1000 Robots Destroyed (0) 0 Value Destroyed (0) 0 Prototype IDs (0) 0 Alien Tech Used (0) 0 Bonus (834) 834 TOTAL SCORE: 3334 Bonus ------- Pacifist 834 Cogmind --------- Core Integrity 608/700 Matter 260/300 Energy 99/100 System Corruption 0% Temperature Cool (0) Movement Core (50) Location -7/Factory Parts ------- > --- POWER (1) -------- (None) > --- PROPULSION (6) --- Advanced Treads Advanced Treads Medium Treads Aluminum Leg Aluminum Leg Titanium Leg > --- UTILITY (4) ------ Reaction Control System Hacking Suite > --- WEAPON (2) ------- (None) > --- INVENTORY (5) ---- Light Ion Engine Improved Treads Advanced Treads Improved Signal Interpreter Advanced Targeting Computer Peak State ------------ > --- POWER ------------ (None) > --- PROPULSION ------- Advanced Treads Advanced Treads Medium Treads Aluminum Leg Aluminum Leg Titanium Leg > --- UTILITY ---------- Reaction Control System Hacking Suite > --- WEAPON ----------- (None) > --- INVENTORY -------- Light Ion Engine Improved Treads Advanced Treads Improved Signal Interpreter Advanced Targeting Computer [Rating: 22] Favorites ----------- Power None Propulsion Advanced Treads Treads Advanced Treads Leg Aluminum Leg Utility Reaction Control System Device Reaction Control System Hackware Hacking Suite Weapon None Build | -11 -10 -9 -9 -8 -7 ------- Run | Yrd Mat Mat Min Mat Fac Slots Evolved 6 | . . 2 . 2 2 Power . | . . . . . . Propulsion 4 | . . 2 . 1 1 Utility 2 | . . . . 1 1 Weapon . | . . . . . . Parts Attached 12 | 2 . . . 6 4 Power . | . . . . . . Engine . | . . . . . . Core . | . . . . . . Reactor . | . . . . . . Propulsion 9 | 2 . . . 5 2 Treads 6 | 2 . . . 2 2 Leg 3 | . . . . 3 . Wheel . | . . . . . . Hover . | . . . . . . Flight . | . . . . . . Utility 3 | . . . . 1 2 Device 2 | . . . . 1 1 Storage . | . . . . . . Processor . | . . . . . . Hackware 1 | . . . . . 1 Protection . | . . . . . . Artifact . | . . . . . . Weapon . | . . . . . . Energy Gun . | . . . . . . Energy Cannon . | . . . . . . Ballistic Gun . | . . . . . . Ballistic Cannon . | . . . . . . Launcher . | . . . . . . Special Weapon . | . . . . . . Impact Weapon . | . . . . . . Slashing Weapon . | . . . . . . Piercing Weapon . | . . . . . . Special Melee Weapon . | . . . . . . Unidentified Prototypes . | . . . . . . Parts Lost 4 | . . . . 2 2 Power . | . . . . . . Propulsion 3 | . . . . 2 1 Utility 1 | . . . . . 1 Weapon . | . . . . . . Highest Loss Streak 2 | . . . . 2 2 To Critical Strikes . | . . . . . . Average Backups 4 | 2 3 4 4 4 4 Power . | . 1 1 1 1 1 Propulsion 1 | 2 2 3 3 1 . Utility 1 | . . . . 1 2 Weapon . | . . . . . . Tool/Special . | . . . . . . Unused Backups 5 | . . . . . 5 Power 1 | . . . . . 1 Propulsion 2 | . . . . . 2 Utility 2 | . . . . . 2 Weapon . | . . . . . . Tool/Special . | . . . . . . Average Slot Usage (%) 43 | . 28 22 22 38 51 Treads 23 | . 28 22 22 23 22 Leg 15 | . . . . 12 22 Device 3 | . . . . 2 4 Hackware 1 | . . . . . 2 Peak Build Rating 22 | 2 2 2 2 13 22 Average Rating 12 | 1 2 2 2 8 17 On Entrance 3 | . 2 2 2 2 13 Naked Turns . | . . . . . . Heaviest Build 1 | . . . . 1 1 Greatest Support 3 | 3 3 3 3 3 3 Greatest Overweight (x) . | . . . . . . Average Overweight (x) . | . . . . . . Largest Inventory Capacity 5 | 5 5 5 5 5 5 Average Capacity 5 | 5 5 5 5 5 5 Most Carried 5 | 4 4 4 4 5 5 Average Carried 4 | 2 3 4 4 4 4 Final Capacity 5 | 5 5 5 5 5 5 Final Carried 5 | 3 4 4 4 4 5 Class Distribution -------------------- 100% | Mutant Dominant Class ---------------- Mutant | -10/Materials Mutant | -9/Materials Mutant | -9/Mines Mutant | -8/Materials Mutant | -7/Factory Resources | -11 -10 -9 -9 -8 -7 ----------- Run | Yrd Mat Mat Min Mat Fac Matter Collected 229 | 220 . . . 9 . Remotely . | . . . . . . Salvage Created . | . . . . . . Parts . | . . . . . . Haulers Intercepted . | . . . . . . Recyclers Shooed . | . . . . . . Parts Field Recycled . | . . . . . . Retrieved Matter . | . . . . . . Parts Self-Destructed . | . . . . . . Prevented . | . . . . . . Kills | -11 -10 -9 -9 -8 -7 ------- Run | Yrd Mat Mat Min Mat Fac Combat Hostiles Destroyed . | . . . . . . Classes Destroyed . | . . . . . . Best Kill Streak . | . . . . . . Combat Bots Only . | . . . . . . Max Kills in Single Turn . | . . . . . . Gunslinging . | . . . . . . Exploded . | . . . . . . Melee . | . . . . . . Uniques/NPCs Destroyed . | . . . . . . Combat | -11 -10 -9 -9 -8 -7 -------- Run | Yrd Mat Mat Min Mat Fac Hostile Shots Fired 148 | . 1 16 2 59 70 Missed 58 | . . 4 . 17 37 Hits 90 | . 1 12 2 42 33 Melee 1 | . . . . 1 . Projectile 89 | . 1 12 2 41 33 Critical Strikes 8 | . . 2 . 4 2 Damage Taken 1328 | . 25 160 21 682 440 Core 392 | . . 68 10 222 92 Absorbed by Shields . | . . . . . . Core Remaining (%) 84 | 100 100 . 80 59 . Volleys Fired . | . . . . . . Largest . | . . . . . . Hottest . | . . . . . . Shots Fired . | . . . . . . Gun . | . . . . . . Cannon . | . . . . . . Launcher . | . . . . . . Special . | . . . . . . Kinetic . | . . . . . . Thermal . | . . . . . . Explosive . | . . . . . . Electromagnetic . | . . . . . . Robot Hit Streak . | . . . . . . Robot Miss Streak . | . . . . . . Penetration Max . | . . . . . . Secondary Targets . | . . . . . . Shots Hit Robots . | . . . . . . Core Hits 3 | . . 1 . 2 . Critical Kills . | . . . . . . Critical Parts Destroyed . | . . . . . . Critical Strikes . | . . . . . . Melee Attacks . | . . . . . . Impact . | . . . . . . Slashing . | . . . . . . Piercing . | . . . . . . Sneak Attacks . | . . . . . . Combat Hostiles . | . . . . . . Follow-up Attacks . | . . . . . . Damage Inflicted 114 | . 27 9 . 58 20 Guns . | . . . . . . Cannons . | . . . . . . Explosions . | . . . . . . Melee . | . . . . . . Ramming 114 | . 27 9 . 58 20 Kinetic . | . . . . . . Thermal . | . . . . . . Explosive . | . . . . . . Electromagnetic . | . . . . . . Impact . | . . . . . . Slashing . | . . . . . . Piercing . | . . . . . . Highest Corruption 1 | . . . . 1 . Average Corruption 1 | . . . . 1 . Corruption Purged . | . . . . . . Corruption Blocked . | . . . . . . Effects 2 | . . . . 2 . Heat Flow Errors 1 | . . . . 1 . Energy Discharges 1 | . . . . 1 . Overload Shots . | . . . . . . Overflow Damage . | . . . . . . Projectiles . | . . . . . . Explosions . | . . . . . . Melee . | . . . . . . Knockbacks 1 | . . . . 1 . Impact 1 | . . . . 1 . Kinetic . | . . . . . . Secondary . | . . . . . . Self-Inflicted Damage 52 | . 13 4 . 26 9 Shots . | . . . . . . Rammed 19 | . 3 1 . 11 4 Targets Rammed 19 | . 3 1 . 11 4 Kicked . | . . . . . . Crushed . | . . . . . . Highest Temperature 191 | . . . . 191 2 Average Temperature 77 | . . . . 86 2 Received Heat Transfer 570 | . 6 90 12 252 210 Siege Activations . | . . . . . . Martial Activations . | . . . . . . Shielding Activations . | . . . . . . Robots Disrupted . | . . . . . . Combat Hostiles . | . . . . . . Robots Corrupted . | . . . . . . Combat Hostiles . | . . . . . . Parts Fried . | . . . . . . Impact Corruptions . | . . . . . . Robots Melted . | . . . . . . Combat Hostiles . | . . . . . . Parts Melted . | . . . . . . Heat Transferred . | . . . . . . Parts Sabotaged . | . . . . . . Parts Stolen . | . . . . . . Parts Stripped . | . . . . . . Power Chain Reactions . | . . . . . . Alert | -11 -10 -9 -9 -8 -7 ------- Run | Yrd Mat Mat Min Mat Fac Maximum Alert Level 1 | . . . . 1 1 Low Security (%) 75 | 100 100 100 100 98 54 Level 1 25 | . . . . 1 45 Level 2 . | . . . . . . Level 3 . | . . . . . . Level 4 . | . . . . . . Level 5 . | . . . . . . High Security . | . . . . . . Max Security . | . . . . . . Peak Influence 282 | . 9 . . 204 282 Initial 92 | . . . . . 92 Average 111 | . 3 . . 60 174 Influence Increases 653 | . 9 . . 264 380 Successful Hack 23 | . 9 . . 9 5 Partial Spotted 15 | . . . . 15 . Lose Combat Pursuer 615 | . . . . 240 375 Influence Decreases 391 | . 9 . . 60 322 Entered New Map 112 | . . . . . 112 Time Decay 259 | . 9 . . 60 190 Lost Part 20 | . . . . . 20 Squads Dispatched 10 | . . 1 . 3 6 Investigation 4 | . . . . 1 3 Extermination 2 | . . . . . 2 Reinforcement 4 | . . 1 . 2 1 Assault . | . . . . . . Garrison . | . . . . . . Intercept . | . . . . . . Searches Triggered . | . . . . . . Construction Impeded . | . . . . . . Haulers Reinforced . | . . . . . . Active Scanning Responses . | . . . . . . Cargo Convoy Interrupts . | . . . . . . Stealth | -11 -10 -9 -9 -8 -7 --------- Run | Yrd Mat Mat Min Mat Fac Distress Signals 3 | . . 1 . 2 . Communications Jammed . | . . . . . . Distress Signals . | . . . . . . Times Spotted 64 | . 3 7 2 25 27 Peak Tracking Total 14 | . 3 6 2 14 13 Tactical Retreats 15 | . . . . 5 10 Traps | -11 -10 -9 -9 -8 -7 ------- Run | Yrd Mat Mat Min Mat Fac Traps Triggered 4 | . . . . 2 2 Indirectly . | . . . . . . Trap Hack Attempts . | . . . . . . Triggered . | . . . . . . Disarmed . | . . . . . . Reprogrammed . | . . . . . . Reused . | . . . . . . Traps Extracted . | . . . . . . Installed . | . . . . . . Triggered . | . . . . . . Machines | -11 -10 -9 -9 -8 -7 ---------- Run | Yrd Mat Mat Min Mat Fac Machines Disabled . | . . . . . . Max in Single Turn . | . . . . . . Machines Repaired . | . . . . . . Machines Dismantled . | . . . . . . Machines Sabotaged . | . . . . . . Overloaded Fab Kills . | . . . . . . Hacking | -11 -10 -9 -9 -8 -7 --------- Run | Yrd Mat Mat Min Mat Fac Machines Accessed 6 | . 1 . . 3 2 Terminals 6 | . 1 . . 3 2 Fabricators . | . . . . . . Repair Stations . | . . . . . . Recycling Units . | . . . . . . Scanalyzers . | . . . . . . Garrison Access . | . . . . . . Total Hacks 16 | . 4 . . 6 6 Successful 6 | . 3 . . 2 1 Failed 10 | . 1 . . 4 5 Catastrophic 4 | . . . . 3 1 Database Lockouts . | . . . . . . Manual 12 | . 3 . . 4 5 Terminals 16 | . 4 . . 6 6 Fabricators . | . . . . . . Repair Stations . | . . . . . . Recycling Units . | . . . . . . Scanalyzers . | . . . . . . Garrison Access . | . . . . . . Terminal Hacks 5 | . 2 . . 2 1 Level Access Points 2 | . 1 . . 1 . Locate Traps 1 | . 1 . . . . Zone Layout 2 | . . . . 1 1 Fabricator Hacks . | . . . . . . Repair Station Hacks . | . . . . . . Recycling Unit Hacks . | . . . . . . Scanalyzer . | . . . . . . Garrison Access Hacks . | . . . . . . Unauthorized Hacks 1 | . 1 . . . . Terminals 1 | . 1 . . . . Botnet 1 | . 1 . . . . Fabricators . | . . . . . . Repair Stations . | . . . . . . Recycling Units . | . . . . . . Scanalyzers . | . . . . . . Garrison Access . | . . . . . . Data Cores Recovered . | . . . . . . Used . | . . . . . . Hacking Detections 5 | . 1 . . 2 2 Full Trace Events 4 | . . . . 2 2 Feedback Events . | . . . . . . Feedback Blocked . | . . . . . . Robot Schematics Acquired . | . . . . . . Robots Built . | . . . . . . Authchips . | . . . . . . Time . | . . . . . . Total Robot Build Rating . | . . . . . . Part Schematics Acquired . | . . . . . . Parts Built . | . . . . . . Authchips . | . . . . . . Time . | . . . . . . Total Part Build Rating . | . . . . . . Parts Repaired . | . . . . . . Time . | . . . . . . Parts Recycled . | . . . . . . Recycled Matter . | . . . . . . Retrieved Matter . | . . . . . . Retrieved Components . | . . . . . . Parts Scanalyzed . | . . . . . . Part Schematics Acquired . | . . . . . . Parts Damaged . | . . . . . . Bothacking | -11 -10 -9 -9 -8 -7 ------------ Run | Yrd Mat Mat Min Mat Fac Used RIF Installer . | . . . . . . Robots Hacked . | . . . . . . Non-combat . | . . . . . . Combat . | . . . . . . Robot Hacks Applied . | . . . . . . Relay Couplers Released . | . . . . . . Fabnet Peak Effective % . | . . . . . . Robots Rewired . | . . . . . . Allies Hacked . | . . . . . . Hacks Repelled . | . . . . . . Allies | -11 -10 -9 -9 -8 -7 -------- Run | Yrd Mat Mat Min Mat Fac Total Allies . | . . . . . . Largest Group . | . . . . . . Highest-Rated Group . | . . . . . . Highest-Rated Ally . | . . . . . . Total Orders . | . . . . . . Ally Attacks . | . . . . . . Total Damage . | . . . . . . Kills . | . . . . . . Allies Corrupted . | . . . . . . Allies Melted . | . . . . . . Intel | -11 -10 -9 -9 -8 -7 ------- Run | Yrd Mat Mat Min Mat Fac Active Infowar (turns) . | . . . . . . Robot Analysis Total . | . . . . . . Derelict Logs Recovered . | . . . . . . Drone Launches . | . . . . . . Drone Recoveries . | . . . . . . Exploration | -11 -10 -9 -9 -8 -7 ------------- Run | Yrd Mat Mat Min Mat Fac Turns Passed 720 | 23 44 53 7 205 388 Spaces Moved 1338 | 32 80 104 13 364 745 Core 1338 | 32 80 104 13 364 745 Treads . | . . . . . . Legs . | . . . . . . Wheels . | . . . . . . Hover . | . . . . . . Flight . | . . . . . . Fastest Speed 50 | 50 50 50 50 50 50 Average Speed 50 | 50 50 50 50 50 50 Slowest Speed 50 | 50 50 50 50 50 50 Overloaded Moves . | . . . . . . Propulsion Burnouts . | . . . . . . Robots Hopped . | . . . . . . Potential Cave-ins . | . . . . . . Cave-ins Triggered . | . . . . . . Exploration Rate (%) 21 | 3 28 16 8 43 30 Regions Visited 5 Branch Regions 1 Pre-discovered Areas . | . . . . . . Known Exits Taken 2 | . 1 . . 1 . Unknown Exits Taken 3 | 1 . 1 1 . . Scrap Searched . | . . . . . . Spaces Dug . | . . . . . . Terrain Destroyed . | . . . . . . Melee . | . . . . . . Projectile . | . . . . . . AOE . | . . . . . . Terrain Rammed . | . . . . . . Walls Destroyed . | . . . . . . Machines Disabled . | . . . . . . Actions | -11 -10 -9 -9 -8 -7 --------- Run | Yrd Mat Mat Min Mat Fac Total 1381 | 38 83 104 12 385 759 Wait 1 | . . . . . 1 Move 1333 | 31 79 103 12 363 745 Hop . | . . . . . . Pick Up 15 | 5 1 . . 5 4 Fast Attach 3 | . . . . 1 2 Attach 10 | 2 . . . 5 3 Detach . | . . . . . . Swap . | . . . . . . Drop . | . . . . . . Fire . | . . . . . . Melee . | . . . . . . Ram 19 | . 3 1 . 11 4 Kick . | . . . . . . Crush . | . . . . . . Escape Stasis . | . . . . . . Rewire . | . . . . . . Trap . | . . . . . . Miscellaneous . | . . . . . . Route ------- -11/Scrapyard -10/Materials (discovered 3 exits: *Mat x3) -9/Materials -9/Mines -8/Materials (discovered 3 exits: *Fac x3) -7/Factory History --------- Turn | Location | Event 16 | -11/Scrapyard | Discovered new exit (range 15) 24 | -11/Scrapyard | Entered Materials 28 | -10/Materials | Identified exit to Materials 68 | -10/Materials | Entered another Materials area 68 | -9/Materials | Evolved 2 slots: Propulsion x2 86 | -9/Materials | Discovered new exit (range 16) 121 | -9/Materials | Entered Mines 126 | -9/Mines | Discovered new exit (range 5) 128 | -9/Mines | Entered Materials 128 | -8/Materials | Evolved 2 slots: Propulsion x1, Utility x1 301 | -8/Materials | Identified exit to Factory 304 | -8/Materials | Build established: Mutant 333 | -8/Materials | Entered Factory 333 | -7/Factory | Evolved 2 slots: Propulsion x1, Utility x1 721 | -7/Factory | Self-destructed Last Messages --------------- 00521_ Critical hit (Burn: +37). 00538_ Acquired Imp. Treads. 00543_ Slammed into U-05 Engineer. 00543_ Destabilizing: Core damaged (-28). 00545_ Slammed into U-05 Engineer. 00581_ Connecting with Terminal... 00581_ ALERT: Suspicious activity at Terminal F009. Dispatching Investigation squad. [Achievement: Party Time] 00590_ Acquired Hacking Suite. 00639_ Triggered Blade Trap. 00639_ Massive razor-sharp blades shoot up from within the floor. 00639_ Titanium Leg severed. 00640_ Acquired Titanium Leg. 00641_ U-05 Engineer lays Concrete. 00670_ Acquired Adv. Treads. 00695_ ALERT: Potential suspicious activity detected, Programmers report to Factory Zone 1S. Map ----- +----------------------------------------------------+ | ?????????????????????????????????????????????????? | | ?????????????????????????????????????????????????? | | ?????????????????????????????????????????????????? | | ?????????????????????????????????????????????????? | | ########?????????????????????????????????????????? | | ! #?????????????????????????????????????????? | | #?????????????????????????????????????????? | | #??????????####???????????????????????????? | | """""" #??????????# ???????????????????????????? | | """""" #??????????# """ #????????????????????????? | | """""" #??????????# """ #????????????????????????? | | """""" #??????????# """ #????????????????????????? | | #??????????# #????????????????????????? | | ##+################ """ #????????????????????????? | | # """ #????????????????????????? | | # """ #????????????????????????? | | + #????????????????????????? | | # ###?##???????????????????? | | # # #??????????????????? | | ############ # # "" #??????????????????? | | ???????????# ####### """ #??????????????????? | | ???????????# # "R #??????????????????? | | ????????#### # """ #??????????????????? | | ??#??? # # "" #??????????????????? | | ??# ?? # + #??????????????????? | | ??# "" # #@ #??????????????????? | | ??# "" # """" ## """ #??????????????????? | | ??# """ # """" ## """ #??????????????????? | | ??# """ [# """" ## """ #??????????????????? | | ??# """ # """" ## #??????????????????? | | ???[ # """" ########??????????????????? | | ????? ?# """" #?????????????????????????? | | #######+#### """" #?????????????????????????? | | #????????????? ???????????? | | ########## ???????????? | | ????????????? | | #???????????????????? | | #???????????????????? | | +############ #???????????????????? | | ?????????# !! #???????????????????? | | ???????# !! #???????????????????? | | """ ""?????# !! #???????????????????? | | """ """ ???# ##### #???????????????????? | | """ """????# #???# #???????????????????? | | ???# ##+#######+###?????????????????? | | [ [ ????# # #?????????????????? | | ####??##????# # """ """ #?????????????????? | | ????????????# # """ """ #?????????????????? | | ????????????# # """ """ #?????????????????? | | ????????????# #* #?????????????????? | +----------------------------------------------------+ Best States ------------- Heat Dissipation 34 Energy Generation 5 Energy Capacity 100 Matter Stores 300 Matter Capacity 300 Sight Range 16 Terrain Scan Density 10 Evasion (%) 58 Offensive Hacking 10 Item Schematics ----------------- None Robot Schematics ------------------ None Fabricated ------------ Nothing Repaired ---------- Nothing Alien Tech Used ----------------- None Achievements -------------- Party Time Challenges ------------ None Game ------ Seed DerelictSmartBallwheel Manual? 0 Play Time 00:15:01 Cumulative 51.4 hours Start 2025.05.27 @ 17:56:57 End 2025.05.27 @ 18:09:38 Sessions 1 Manual Loads 0 Difficulty Rogue Special Mode None Game No. 33 Rogue 33 Adventurer 0 Explorer 0 Win Type - Total 1 Types 0/0/0/1/0/0/0/0/0/0 Lore% 20 Gallery% 33 Achievement% 38 Wizard Run 0 Options --------- Layout 1 ASCII 0 Keyboard 0 Movement Mouse Keybinds 0 Fullscreen 1 Font 32/SmallcapsGlow Map View 50x35 Zoom Use 0% Tactical HUD 1 Map Filters NONE Filters NONE Steam 1 RUN: 78dbb31a-4610-455a-904e-4c4bed5fd4f8